[Event "Early-Titled-Tuesday-Blitz-October-17-2023"]
[Site "Chess.com"]
[Date "2023.10.17"]
[Round "10"]
[White "viktorgen2021"]
[Black "ural58"]
[Result "1-0"]
[WhiteElo "2436"]
[BlackElo "2520"]
[TimeControl "180+1"]
[EndTime "9:59:19 PDT"]
[Termination "viktorgen2021 won by resignation"]

1. Nf3 {[%clk 0:02:56.2]} 1... d5 {[%clk 0:02:45.5]} 2. c4 {[%clk 0:02:55.4]}
2... e6 {[%clk 0:02:40.8]} 3. g3 {[%clk 0:02:55.8]} 3... dxc4 {[%clk 0:02:31.7]}
4. Qa4+ {[%clk 0:02:55.3]} 4... Qd7 {[%clk 0:02:29.4]} 5. Qxc4 {[%clk
0:02:54.9]} 5... Qc6 {[%clk 0:02:30]} 6. Qxc6+ {[%clk 0:02:51.2]} 6... Nxc6
{[%clk 0:02:29.5]} 7. Bg2 {[%clk 0:02:51.3]} 7... Nb4 {[%clk 0:02:24.6]} 8. Na3
{[%clk 0:02:49.8]} 8... Bd7 {[%clk 0:02:20.6]} 9. O-O {[%clk 0:02:49.2]} 9...
Bc6 {[%clk 0:02:20.2]} 10. d3 {[%clk 0:02:48.6]} 10... Ne7 {[%clk 0:02:12.3]}
11. Bd2 {[%clk 0:02:45.7]} 11... Nf5 {[%clk 0:02:11]} 12. Rfc1 {[%clk 0:02:40]}
12... a5 {[%clk 0:02:06.8]} 13. Nc4 {[%clk 0:02:38.4]} 13... h6 {[%clk
0:02:02.1]} 14. Nce5 {[%clk 0:02:38.3]} 14... Bd6 {[%clk 0:01:54.5]} 15. Nxc6
{[%clk 0:02:33.7]} 15... Nxc6 {[%clk 0:01:53.9]} 16. Bc3 {[%clk 0:02:22.8]}
16... O-O {[%clk 0:01:52.2]} 17. a3 {[%clk 0:02:10]} 17... f6 {[%clk 0:01:42.1]}
18. Nd2 {[%clk 0:02:06.5]} 18... Nfe7 {[%clk 0:01:41.3]} 19. Ne4 {[%clk
0:02:01.7]} 19... Nd5 {[%clk 0:01:30.2]} 20. Bd2 {[%clk 0:01:59.2]} 20... f5
{[%clk 0:01:24.9]} 21. Nc5 {[%clk 0:01:57.7]} 21... Nd8 {[%clk 0:01:20.4]} 22.
Nxe6 {[%clk 0:01:48]} 22... Nxe6 {[%clk 0:01:09.9]} 23. Bxd5 {[%clk 0:01:47.6]}
23... Rf6 {[%clk 0:01:10]} 24. Bxb7 {[%clk 0:01:29.2]} 24... Rb8 {[%clk
0:01:09.8]} 25. Bd5 {[%clk 0:01:29.7]} 25... Kh7 {[%clk 0:01:09.1]} 26. Bxa5
{[%clk 0:01:27.7]} 26... Nd4 {[%clk 0:01:02.2]} 27. Kf1 {[%clk 0:01:21.3]} 27...
Nb3 {[%clk 0:00:29.2]} 28. Bxb3 {[%clk 0:01:10.6]} 28... Rxb3 {[%clk 0:00:30.1]}
29. Rc2 {[%clk 0:01:10.8]} 29... f4 {[%clk 0:00:29.3]} 30. Bc3 {[%clk
0:00:57.7]} 30... Rf8 {[%clk 0:00:25]} 31. Kg2 {[%clk 0:00:58]} 31... g5 {[%clk
0:00:24.5]} 32. Rac1 {[%clk 0:00:55]} 32... g4 {[%clk 0:00:23.4]} 33. f3 {[%clk
0:00:53]} 33... fxg3 {[%clk 0:00:19]} 34. hxg3 {[%clk 0:00:53.9]} 34... gxf3+
{[%clk 0:00:18.6]} 35. exf3 {[%clk 0:00:54.8]} 35... h5 {[%clk 0:00:18.4]} 36.
Rh1 {[%clk 0:00:52.7]} 36... Kg6 {[%clk 0:00:18.5]} 37. f4 {[%clk 0:00:46.8]}
37... Rb5 {[%clk 0:00:15.9]} 38. Kf3 {[%clk 0:00:46.8]} 38... Kf7 {[%clk
0:00:15.1]} 39. Rch2 {[%clk 0:00:40.8]} 39... Kg6 {[%clk 0:00:14.3]} 40. Re2
{[%clk 0:00:39.5]} 40... Rd5 {[%clk 0:00:13.9]} 41. d4 {[%clk 0:00:36.3]} 41...
Rdf5 {[%clk 0:00:12.2]} 42. Re6+ {[%clk 0:00:36]} 42... Kf7 {[%clk 0:00:12]} 43.
Rh6 {[%clk 0:00:34.6]} 43... Kg7 {[%clk 0:00:12]} 44. R6xh5 {[%clk 0:00:34.5]}
1-0

[Event "Early-Titled-Tuesday-Blitz-October-17-2023"]
[Site "Chess.com"]
[Date "2023.10.17"]
[Round "10"]
[White "victormago"]
[Black "kingapolak"]
[Result "1-0"]
[WhiteElo "2456"]
[BlackElo "2139"]
[TimeControl "180+1"]
[EndTime "9:59:20 PDT"]
[Termination "victormago won on time"]

1. d4 {[%clk 0:02:59.5]} 1... Nf6 {[%clk 0:02:59.3]} 2. c4 {[%clk 0:02:59.3]}
2... g6 {[%clk 0:02:59.4]} 3. Nc3 {[%clk 0:02:59.2]} 3... Bg7 {[%clk 0:02:58.8]}
4. e4 {[%clk 0:02:58.8]} 4... d6 {[%clk 0:02:58.7]} 5. Be2 {[%clk 0:02:59]} 5...
O-O {[%clk 0:02:56.3]} 6. Bg5 {[%clk 0:02:58.1]} 6... c5 {[%clk 0:02:51.3]} 7.
d5 {[%clk 0:02:58.1]} 7... h6 {[%clk 0:01:49.6]} 8. Be3 {[%clk 0:02:55.8]} 8...
a6 {[%clk 0:01:44.2]} 9. Qd2 {[%clk 0:02:53.5]} 9... Bd7 {[%clk 0:01:43.6]} 10.
Bxh6 {[%clk 0:02:49.1]} 10... b5 {[%clk 0:01:41.6]} 11. Bxg7 {[%clk 0:02:46.9]}
11... Kxg7 {[%clk 0:01:42.5]} 12. f3 {[%clk 0:02:44.2]} 12... b4 {[%clk
0:01:31.9]} 13. Nd1 {[%clk 0:02:41.8]} 13... Rh8 {[%clk 0:01:31.2]} 14. Nf2
{[%clk 0:02:39.7]} 14... e5 {[%clk 0:01:21]} 15. dxe6 {[%clk 0:02:32.2]} 15...
Bxe6 {[%clk 0:01:21.2]} 16. Ngh3 {[%clk 0:02:30.2]} 16... Nc6 {[%clk 0:01:04.4]}
17. Nf4 {[%clk 0:02:25.6]} 17... Nd4 {[%clk 0:01:02.7]} 18. O-O {[%clk
0:02:12.5]} 18... Qd7 {[%clk 0:00:51.6]} 19. Rae1 {[%clk 0:02:02.2]} 19... Rh7
{[%clk 0:00:49.9]} 20. b3 {[%clk 0:01:56.8]} 20... Rah8 {[%clk 0:00:49.4]} 21.
h3 {[%clk 0:01:56.8]} 21... Nh5 {[%clk 0:00:43.2]} 22. Nxh5+ {[%clk 0:01:41.3]}
22... Rxh5 {[%clk 0:00:42.9]} 23. Bd1 {[%clk 0:01:39]} 23... Bxh3 {[%clk
0:00:34]} 24. Nxh3 {[%clk 0:01:33.5]} 24... Rxh3 {[%clk 0:00:33.5]} 25. gxh3
{[%clk 0:01:33.6]} 25... Qxh3 {[%clk 0:00:33.5]} 26. Qg2 {[%clk 0:01:33.8]}
26... Qh4 {[%clk 0:00:20]} 27. e5 {[%clk 0:01:13.1]} 27... Rh5 {[%clk 0:00:16]}
28. Re4 {[%clk 0:01:12.4]} 28... Qe7 {[%clk 0:00:10.6]} 29. exd6 {[%clk
0:01:09.7]} 29... Qxd6 {[%clk 0:00:09.5]} 30. f4 {[%clk 0:01:10.1]} 30... Rh4
{[%clk 0:00:08.3]} 31. f5 {[%clk 0:01:08.3]} 31... Rh6 {[%clk 0:00:04.2]} 32.
fxg6 {[%clk 0:00:59.4]} 32... Rxg6 {[%clk 0:00:04.1]} 33. Rg4 {[%clk 0:00:59.4]}
33... Ne6 {[%clk 0:00:01.5]} 34. Rxg6+ {[%clk 0:00:58.8]} 34... fxg6 {[%clk
0:00:02.4]} 35. Bc2 {[%clk 0:00:53.9]} 35... Qd4+ {[%clk 0:00:02.4]} 36. Rf2
{[%clk 0:00:50.2]} 36... g5 {[%clk 0:00:02.6]} 37. Qe4 {[%clk 0:00:48.5]} 37...
Qa1+ {[%clk 0:00:02.5]} 38. Kg2 {[%clk 0:00:48.4]} 38... Nf4+ {[%clk 0:00:01.6]}
39. Rxf4 {[%clk 0:00:48.4]} 39... gxf4 {[%clk 0:00:02.5]} 40. Qxf4 {[%clk
0:00:46.6]} 40... Qxa2 {[%clk 0:00:02.2]} 41. Qg5+ {[%clk 0:00:46.5]} 41... Kf7
{[%clk 0:00:02.5]} 42. Qf5+ {[%clk 0:00:46.5]} 42... Ke7 {[%clk 0:00:02.7]} 43.
Kf3 {[%clk 0:00:46.8]} 43... Qb2 {[%clk 0:00:01.9]} 44. Qxc5+ {[%clk 0:00:46.7]}
1-0

[Event "Early-Titled-Tuesday-Blitz-October-17-2023"]
[Site "Chess.com"]
[Date "2023.10.17"]
[Round "10"]
[White "SlavenPastar"]
[Black "Cheer_Down"]
[Result "1/2-1/2"]
[WhiteElo "2644"]
[BlackElo "2529"]
[TimeControl "180+1"]
[EndTime "9:59:21 PDT"]
[Termination "Game drawn by agreement"]

1. b3 {[%clk 0:03:00.9]} 1... e5 {[%clk 0:02:53.5]} 2. Bb2 {[%clk 0:03:01.8]}
2... Nc6 {[%clk 0:02:53]} 3. Nf3 {[%clk 0:03:02.4]} 3... e4 {[%clk 0:02:52.7]}
4. Nd4 {[%clk 0:03:02.9]} 4... Nxd4 {[%clk 0:02:50.9]} 5. Bxd4 {[%clk
0:03:03.8]} 5... Nf6 {[%clk 0:02:50.8]} 6. e3 {[%clk 0:03:04.1]} 6... d5 {[%clk
0:02:49.1]} 7. d3 {[%clk 0:03:04.2]} 7... h5 {[%clk 0:02:48.6]} 8. Nd2 {[%clk
0:02:58.9]} 8... Bf5 {[%clk 0:02:48]} 9. c4 {[%clk 0:02:57.2]} 9... exd3 {[%clk
0:02:42.3]} 10. cxd5 {[%clk 0:02:52.8]} 10... Qxd5 {[%clk 0:02:39.6]} 11. Qf3
{[%clk 0:02:49.5]} 11... O-O-O {[%clk 0:02:30.1]} 12. Bxf6 {[%clk 0:02:46.2]}
12... gxf6 {[%clk 0:02:29.7]} 13. e4 {[%clk 0:02:45.3]} 13... Bxe4 {[%clk
0:02:23.1]} 14. Qxe4 {[%clk 0:02:43.3]} 14... Qxe4+ {[%clk 0:02:17.2]} 15. Nxe4
{[%clk 0:02:44.2]} 15... Re8 {[%clk 0:02:17.6]} 16. Bxd3 {[%clk 0:02:44]} 16...
f5 {[%clk 0:02:17.4]} 17. f3 {[%clk 0:02:34.1]} 17... fxe4 {[%clk 0:02:16.4]}
18. fxe4 {[%clk 0:02:34.2]} 18... f5 {[%clk 0:02:01.3]} 19. e5 {[%clk
0:01:58.1]} 19... Rxe5+ {[%clk 0:01:58.2]} 20. Kd2 {[%clk 0:01:56.4]} 20... Bh6+
{[%clk 0:01:31.8]} 21. Kc2 {[%clk 0:01:56.1]} 21... Rg8 {[%clk 0:01:27.1]} 22.
g3 {[%clk 0:01:55.5]} 22... f4 {[%clk 0:01:27.2]} 23. Raf1 {[%clk 0:01:21.3]}
23... Rc5+ {[%clk 0:01:23.7]} 24. Kb1 {[%clk 0:01:14.7]} 24... Rf8 {[%clk
0:01:07.5]} 25. Rf3 {[%clk 0:01:05.4]} 25... fxg3 {[%clk 0:00:57.6]} 26. Rxf8+
{[%clk 0:01:06.3]} 26... Bxf8 {[%clk 0:00:57.6]} 27. hxg3 {[%clk 0:01:06.6]}
27... Bd6 {[%clk 0:00:56.3]} 28. Be2 {[%clk 0:00:47.3]} 28... Bxg3 {[%clk
0:00:51.9]} 29. Rxh5 {[%clk 0:00:46.5]} 29... Rxh5 {[%clk 0:00:51.7]} 30. Bxh5
{[%clk 0:00:46.1]} 30... c6 {[%clk 0:00:51.9]} 31. Bg4+ {[%clk 0:00:42.8]} 31...
Kc7 {[%clk 0:00:49.6]} 32. Bf3 {[%clk 0:00:42.7]} 32... a5 {[%clk 0:00:49.5]}
33. Be2 {[%clk 0:00:43.6]} 33... Kd6 {[%clk 0:00:49.5]} 34. Bd1 {[%clk
0:00:44.5]} 34... Ke5 {[%clk 0:00:49.6]} 35. Be2 {[%clk 0:00:45]} 35... Kd4
{[%clk 0:00:50.2]} 36. Bg4 {[%clk 0:00:45.3]} 36... Kc5 {[%clk 0:00:49.9]} 37.
Bc8 {[%clk 0:00:45.1]} 37... b5 {[%clk 0:00:50.2]} 38. Bg4 {[%clk 0:00:44.5]}
38... Kd4 {[%clk 0:00:50.4]} 39. Kc2 {[%clk 0:00:44.5]} 39... Kc5 {[%clk
0:00:50.1]} 40. Bd7 {[%clk 0:00:44.4]} 40... Be5 {[%clk 0:00:50.5]} 41. Be8
{[%clk 0:00:44.5]} 41... Bg7 {[%clk 0:00:51]} 42. Bd7 {[%clk 0:00:44.7]} 42...
Kd6 {[%clk 0:00:51.5]} 43. Be8 {[%clk 0:00:45]} 43... Bf6 {[%clk 0:00:52.2]} 44.
Bh5 {[%clk 0:00:45.1]} 44... Ke5 {[%clk 0:00:52.4]} 45. Bf3 {[%clk 0:00:45.6]}
45... Kd6 {[%clk 0:00:52.3]} 46. Bg2 {[%clk 0:00:46.5]} 46... Be5 {[%clk
0:00:52.8]} 47. Bh1 {[%clk 0:00:47.4]} 47... Kc5 {[%clk 0:00:53.4]} 48. Bg2
{[%clk 0:00:47.7]} 48... Kb6 {[%clk 0:00:53.8]} 49. Bh1 {[%clk 0:00:48]} 49...
Kc5 {[%clk 0:00:53.9]} 50. Bg2 {[%clk 0:00:48.7]} 50... Bd6 {[%clk 0:00:54.5]}
51. Bh1 {[%clk 0:00:49.2]} 51... Kb6 {[%clk 0:00:53.2]} 52. Bg2 {[%clk
0:00:48.9]} 52... c5 {[%clk 0:00:54.1]} 53. Bh1 {[%clk 0:00:48.4]} 53... Be5
{[%clk 0:00:54.3]} 54. Bg2 {[%clk 0:00:36.4]} 54... Bd4 {[%clk 0:00:54.5]} 55.
a4 {[%clk 0:00:35.8]} 55... bxa4 {[%clk 0:00:51.6]} 56. bxa4 {[%clk 0:00:36.7]}
56... Kc7 {[%clk 0:00:52.1]} 57. Kd3 {[%clk 0:00:36.9]} 57... Kd6 {[%clk
0:00:53]} 58. Kc4 {[%clk 0:00:37.5]} 58... Ke5 {[%clk 0:00:53.5]} 59. Bc6 {[%clk
0:00:34.7]} 59... Kf4 {[%clk 0:00:54.4]} 60. Bb5 {[%clk 0:00:35.3]} 60... Ke3
{[%clk 0:00:53.3]} 61. Bc6 {[%clk 0:00:35.6]} 61... Kd2 {[%clk 0:00:53.4]} 62.
Kb5 {[%clk 0:00:36.2]} 62... Bc3 {[%clk 0:00:52.3]} 63. Kxc5 {[%clk 0:00:36.2]}
63... Bb4+ {[%clk 0:00:53.2]} 64. Kc4 {[%clk 0:00:35.3]} 64... Kc1 {[%clk
0:00:54.1]} 65. Bb5 {[%clk 0:00:35.8]} 65... Kb2 {[%clk 0:00:54.3]} 66. Bc6
{[%clk 0:00:36.7]} 66... Ka3 {[%clk 0:00:55]} 1/2-1/2

[Event "Early-Titled-Tuesday-Blitz-October-17-2023"]
[Site "Chess.com"]
[Date "2023.10.17"]
[Round "10"]
[White "kirillshevchenko"]
[Black "ArtemDyachuk"]
[Result "1-0"]
[WhiteElo "2932"]
[BlackElo "2665"]
[TimeControl "180+1"]
[EndTime "9:59:22 PDT"]
[Termination "kirillshevchenko won by checkmate"]

1. e4 {[%clk 0:02:59.4]} 1... c6 {[%clk 0:02:59.2]} 2. Nc3 {[%clk 0:02:56.9]}
2... d5 {[%clk 0:02:57.8]} 3. Nf3 {[%clk 0:02:57.4]} 3... dxe4 {[%clk 0:02:56]}
4. Nxe4 {[%clk 0:02:57.5]} 4... Nd7 {[%clk 0:02:48.9]} 5. Qe2 {[%clk 0:02:53.8]}
5... e6 {[%clk 0:02:46.5]} 6. d4 {[%clk 0:02:53.7]} 6... Ngf6 {[%clk 0:02:40.6]}
7. Bf4 {[%clk 0:02:40.2]} 7... Nxe4 {[%clk 0:02:32]} 8. Qxe4 {[%clk 0:02:40.1]}
8... Nf6 {[%clk 0:02:31.7]} 9. Qd3 {[%clk 0:02:39.3]} 9... Bd6 {[%clk
0:02:24.9]} 10. Be5 {[%clk 0:02:27.6]} 10... O-O {[%clk 0:02:09.6]} 11. O-O-O
{[%clk 0:02:27.6]} 11... Bxe5 {[%clk 0:02:06.3]} 12. dxe5 {[%clk 0:02:23.7]}
12... Qxd3 {[%clk 0:01:59.5]} 13. Bxd3 {[%clk 0:02:23.4]} 13... Nd5 {[%clk
0:01:59.8]} 14. Be4 {[%clk 0:02:18.6]} 14... f6 {[%clk 0:01:39.5]} 15. c4 {[%clk
0:02:09.5]} 15... Ne7 {[%clk 0:01:29]} 16. Rd6 {[%clk 0:02:01.4]} 16... h5
{[%clk 0:01:17.5]} 17. Rhd1 {[%clk 0:01:58.5]} 17... Kf7 {[%clk 0:01:15.6]} 18.
h4 {[%clk 0:01:36.9]} 18... a5 {[%clk 0:01:11.6]} 19. b3 {[%clk 0:01:23.8]}
19... a4 {[%clk 0:01:08.5]} 20. b4 {[%clk 0:01:23.8]} 20... Rb8 {[%clk
0:00:41.1]} 21. a3 {[%clk 0:01:23.7]} 21... Re8 {[%clk 0:00:34.5]} 22. Kb2
{[%clk 0:01:20.8]} 22... Rf8 {[%clk 0:00:29.3]} 23. Kc3 {[%clk 0:01:20.9]} 23...
Re8 {[%clk 0:00:21.8]} 24. g3 {[%clk 0:01:20.2]} 24... Rf8 {[%clk 0:00:20.3]}
25. R1d2 {[%clk 0:01:14.7]} 25... Re8 {[%clk 0:00:19.9]} 26. b5 {[%clk
0:00:46.9]} 26... cxb5 {[%clk 0:00:13.3]} 27. cxb5 {[%clk 0:00:47.8]} 27... b6
{[%clk 0:00:14.2]} 28. Kb4 {[%clk 0:00:45.4]} 28... Bb7 {[%clk 0:00:14.2]} 29.
Bc6 {[%clk 0:00:35.1]} 29... Rec8 {[%clk 0:00:11.4]} 30. Nd4 {[%clk 0:00:32.9]}
30... fxe5 {[%clk 0:00:08.7]} 31. Bxb7 {[%clk 0:00:18.9]} 31... Rxb7 {[%clk
0:00:08.8]} 32. Nxe6 {[%clk 0:00:19.3]} 32... Rc1 {[%clk 0:00:09.4]} 33. Ng5+
{[%clk 0:00:18.7]} 33... Kg8 {[%clk 0:00:03.7]} 34. Rd8# {[%clk 0:00:18.2]} 1-0

[Event "Early-Titled-Tuesday-Blitz-October-17-2023"]
[Site "Chess.com"]
[Date "2023.10.17"]
[Round "10"]
[White "dosto07"]
[Black "attack2mateU"]
[Result "0-1"]
[WhiteElo "2546"]
[BlackElo "2714"]
[TimeControl "180+1"]
[EndTime "9:59:23 PDT"]
[Termination "attack2mateU won on time"]

1. e4 {[%clk 0:03:00.9]} 1... c5 {[%clk 0:03:00.1]} 2. Nf3 {[%clk 0:03:00.7]}
2... d6 {[%clk 0:03:00.6]} 3. Bb5+ {[%clk 0:03:00.8]} 3... Nd7 {[%clk
0:02:59.1]} 4. d4 {[%clk 0:03:00.7]} 4... cxd4 {[%clk 0:02:59.1]} 5. Qxd4 {[%clk
0:03:01.4]} 5... a6 {[%clk 0:02:56.6]} 6. Bxd7+ {[%clk 0:03:02]} 6... Bxd7
{[%clk 0:02:57.1]} 7. Nc3 {[%clk 0:03:02.5]} 7... Nf6 {[%clk 0:02:55]} 8. Bg5
{[%clk 0:03:01.8]} 8... Rc8 {[%clk 0:02:05.6]} 9. O-O-O {[%clk 0:02:57.9]} 9...
Qa5 {[%clk 0:02:05.8]} 10. e5 {[%clk 0:02:37.3]} 10... dxe5 {[%clk 0:02:01.2]}
11. Nxe5 {[%clk 0:02:33.4]} 11... Be6 {[%clk 0:01:53.1]} 12. a3 {[%clk 0:02:11]}
12... g6 {[%clk 0:01:35.9]} 13. Bxf6 {[%clk 0:01:36.7]} 13... exf6 {[%clk
0:01:30.6]} 14. Ng4 {[%clk 0:01:36.6]} 14... Qg5+ {[%clk 0:01:24.7]} 15. Ne3
{[%clk 0:01:34.1]} 15... Bc5 {[%clk 0:01:24.5]} 16. Qa4+ {[%clk 0:01:29.8]}
16... Kf8 {[%clk 0:01:04]} 17. Kb1 {[%clk 0:01:20.9]} 17... Bxe3 {[%clk
0:01:00.3]} 18. fxe3 {[%clk 0:01:20.8]} 18... Qxg2 {[%clk 0:00:57.2]} 19. e4
{[%clk 0:01:17.9]} 19... Kg7 {[%clk 0:00:54.4]} 20. Rhf1 {[%clk 0:01:03]} 20...
Qxh2 {[%clk 0:00:52.5]} 21. Nd5 {[%clk 0:00:53.1]} 21... Rhd8 {[%clk 0:00:41]}
22. Qb4 {[%clk 0:00:35.2]} 22... Qxc2+ {[%clk 0:00:38.6]} 23. Ka1 {[%clk
0:00:34.4]} 23... Qc4 {[%clk 0:00:34]} 24. Qd2 {[%clk 0:00:31.2]} 24... Qxe4
{[%clk 0:00:32.6]} 25. Nxf6 {[%clk 0:00:13.2]} 25... Rxd2 {[%clk 0:00:18.3]} 26.
Nxe4 {[%clk 0:00:12.5]} 26... Rxd1+ {[%clk 0:00:19]} 27. Rxd1 {[%clk 0:00:12.8]}
27... h5 {[%clk 0:00:18.9]} 28. Nd6 {[%clk 0:00:11.1]} 28... Rb8 {[%clk
0:00:14.8]} 29. Ne4 {[%clk 0:00:09.8]} 29... h4 {[%clk 0:00:15.1]} 30. Ng5
{[%clk 0:00:09.8]} 30... Kf6 {[%clk 0:00:12.5]} 31. Ne4+ {[%clk 0:00:09.1]}
31... Ke5 {[%clk 0:00:12.2]} 32. Re1 {[%clk 0:00:08.5]} 32... h3 {[%clk
0:00:10.8]} 33. Ng5+ {[%clk 0:00:08.2]} 33... Kf4 {[%clk 0:00:10.9]} 34. Nxe6+
{[%clk 0:00:05.8]} 34... fxe6 {[%clk 0:00:11.8]} 35. Rxe6 {[%clk 0:00:03.7]}
35... h2 {[%clk 0:00:10.8]} 36. Re1 {[%clk 0:00:04.4]} 36... Kg3 {[%clk
0:00:10.5]} 0-1

[Event "Early-Titled-Tuesday-Blitz-October-17-2023"]
[Site "Chess.com"]
[Date "2023.10.17"]
[Round "10"]
[White "Kostya0705"]
[Black "Khromkin"]
[Result "1-0"]
[WhiteElo "2636"]
[BlackElo "2516"]
[TimeControl "180+1"]
[EndTime "9:59:23 PDT"]
[Termination "Kostya0705 won by resignation"]

1. e4 {[%clk 0:03:00.9]} 1... c5 {[%clk 0:02:54.6]} 2. Nf3 {[%clk 0:03:00.7]}
2... Nc6 {[%clk 0:02:55.3]} 3. Nc3 {[%clk 0:03:00.7]} 3... g6 {[%clk 0:02:53.3]}
4. d4 {[%clk 0:02:59.6]} 4... cxd4 {[%clk 0:02:52.8]} 5. Nxd4 {[%clk 0:03:00.5]}
5... Bg7 {[%clk 0:02:53]} 6. Be3 {[%clk 0:02:59.9]} 6... Nf6 {[%clk 0:02:53.1]}
7. Bc4 {[%clk 0:02:58.9]} 7... O-O {[%clk 0:02:52.4]} 8. Bb3 {[%clk 0:02:56.8]}
8... a5 {[%clk 0:02:52.9]} 9. f3 {[%clk 0:02:54.3]} 9... d5 {[%clk 0:02:48.5]}
10. exd5 {[%clk 0:02:52.6]} 10... Nb4 {[%clk 0:02:35.4]} 11. Nde2 {[%clk
0:02:47]} 11... a4 {[%clk 0:02:26.4]} 12. Nxa4 {[%clk 0:02:26.2]} 12... Nfxd5
{[%clk 0:02:22.3]} 13. Bf2 {[%clk 0:02:10.9]} 13... Rxa4 {[%clk 0:02:17.8]} 14.
Bxa4 {[%clk 0:02:09.1]} 14... Qa5 {[%clk 0:02:18.4]} 15. O-O {[%clk 0:01:48.5]}
15... Qxa4 {[%clk 0:01:39.2]} 16. c3 {[%clk 0:01:48]} 16... Nc2 {[%clk
0:01:38.1]} 17. b3 {[%clk 0:01:41]} 17... Nxc3 {[%clk 0:01:01.2]} 18. Nxc3
{[%clk 0:01:33.9]} 18... Qc6 {[%clk 0:00:57.5]} 19. Qxc2 {[%clk 0:01:31.3]}
19... Bf5 {[%clk 0:00:53.8]} 20. Qe2 {[%clk 0:01:24.7]} 20... Bxc3 {[%clk
0:00:51.3]} 21. Rac1 {[%clk 0:01:23.4]} 21... Qf6 {[%clk 0:00:51.8]} 22. Rcd1
{[%clk 0:01:02.1]} 22... Ra8 {[%clk 0:00:47.6]} 23. a4 {[%clk 0:00:59.1]} 23...
Be6 {[%clk 0:00:47.2]} 24. Qb5 {[%clk 0:00:52.7]} 24... Be5 {[%clk 0:00:30.2]}
25. Qd3 {[%clk 0:00:43.1]} 25... Rc8 {[%clk 0:00:27.3]} 26. Bd4 {[%clk
0:00:41.5]} 26... Bxd4+ {[%clk 0:00:26.4]} 27. Qxd4 {[%clk 0:00:41.8]} 27...
Qxd4+ {[%clk 0:00:24]} 28. Rxd4 {[%clk 0:00:42.7]} 28... Bxb3 {[%clk 0:00:23.8]}
29. Rb4 {[%clk 0:00:42.2]} 29... Bd5 {[%clk 0:00:24.1]} 30. Rd1 {[%clk
0:00:38.4]} 30... e6 {[%clk 0:00:24.5]} 31. a5 {[%clk 0:00:35.6]} 31... Rc2
{[%clk 0:00:23.9]} 32. Rb5 {[%clk 0:00:29.4]} 32... Ra2 {[%clk 0:00:23.2]} 33.
Rc1 {[%clk 0:00:27.1]} 33... Kg7 {[%clk 0:00:22.2]} 34. Rc7 {[%clk 0:00:23.9]}
34... h5 {[%clk 0:00:21.9]} 35. Rbc5 {[%clk 0:00:20.2]} 35... h4 {[%clk
0:00:21.2]} 36. h3 {[%clk 0:00:19.6]} 36... g5 {[%clk 0:00:19.6]} 37. Rd7 {[%clk
0:00:18.5]} 37... Kf6 {[%clk 0:00:19.4]} 38. Rcc7 {[%clk 0:00:17.6]} 38... e5
{[%clk 0:00:17.4]} 39. Rxd5 {[%clk 0:00:16.9]} 39... Ra1+ {[%clk 0:00:16.6]} 40.
Kf2 {[%clk 0:00:17.1]} 40... Kf5 {[%clk 0:00:17.1]} 41. Rxf7+ {[%clk 0:00:16.3]}
1-0

[Event "Early-Titled-Tuesday-Blitz-October-17-2023"]
[Site "Chess.com"]
[Date "2023.10.17"]
[Round "10"]
[White "LamaChampetre"]
[Black "ExcitingTrap"]
[Result "0-1"]
[WhiteElo "2226"]
[BlackElo "2386"]
[TimeControl "180+1"]
[EndTime "9:59:27 PDT"]
[Termination "ExcitingTrap won by checkmate"]

1. d4 {[%clk 0:02:57.1]} 1... Nf6 {[%clk 0:02:59.9]} 2. c4 {[%clk 0:02:57.4]}
2... e6 {[%clk 0:03:00.3]} 3. Nf3 {[%clk 0:02:56.6]} 3... d5 {[%clk 0:03:00.6]}
4. g3 {[%clk 0:02:56.8]} 4... dxc4 {[%clk 0:03:00.5]} 5. Bg2 {[%clk 0:02:56.7]}
5... c5 {[%clk 0:03:00]} 6. O-O {[%clk 0:02:54]} 6... Nc6 {[%clk 0:02:59.3]} 7.
Ne5 {[%clk 0:02:51.6]} 7... Nxd4 {[%clk 0:02:53.3]} 8. e3 {[%clk 0:01:59.6]}
8... Nc6 {[%clk 0:02:28.4]} 9. Nxc6 {[%clk 0:01:54.5]} 9... bxc6 {[%clk
0:02:28.4]} 10. Bxc6+ {[%clk 0:01:14]} 10... Bd7 {[%clk 0:02:28.4]} 11. Bxa8
{[%clk 0:01:14]} 11... Qxa8 {[%clk 0:02:29.3]} 12. Nc3 {[%clk 0:01:14.4]} 12...
Be7 {[%clk 0:02:23.2]} 13. f3 {[%clk 0:01:14.6]} 13... O-O {[%clk 0:02:22.6]}
14. e4 {[%clk 0:01:15.1]} 14... Rd8 {[%clk 0:02:20.2]} 15. Qe2 {[%clk
0:01:15.4]} 15... e5 {[%clk 0:02:17]} 16. Qxc4 {[%clk 0:01:00.3]} 16... Be6
{[%clk 0:02:15]} 17. Qe2 {[%clk 0:01:00.2]} 17... Rd4 {[%clk 0:02:04]} 18. Rf2
{[%clk 0:00:38.9]} 18... Bc4 {[%clk 0:02:01.9]} 19. Qe1 {[%clk 0:00:39.1]} 19...
Bd3 {[%clk 0:01:50.2]} 20. Be3 {[%clk 0:00:38.3]} 20... Rd8 {[%clk 0:01:46.8]}
21. b3 {[%clk 0:00:35.4]} 21... c4 {[%clk 0:01:38.2]} 22. bxc4 {[%clk
0:00:35.2]} 22... Bb4 {[%clk 0:01:34.4]} 23. Qc1 {[%clk 0:00:25.2]} 23... Bxc4
{[%clk 0:01:23.8]} 24. Na4 {[%clk 0:00:20.1]} 24... Rc8 {[%clk 0:01:19.4]} 25.
Qb2 {[%clk 0:00:17.4]} 25... Bd6 {[%clk 0:01:10.2]} 26. Rc1 {[%clk 0:00:17.1]}
26... Ba6 {[%clk 0:00:49.7]} 27. Rxc8+ {[%clk 0:00:15.6]} 27... Qxc8 {[%clk
0:00:50.6]} 28. Rc2 {[%clk 0:00:14.9]} 28... Qd7 {[%clk 0:00:39.5]} 29. Qb3
{[%clk 0:00:11.8]} 29... h6 {[%clk 0:00:34.4]} 30. Rd2 {[%clk 0:00:12]} 30...
Qc6 {[%clk 0:00:30.2]} 31. Nc3 {[%clk 0:00:11.9]} 31... Bc5 {[%clk 0:00:18.8]}
32. Nd5 {[%clk 0:00:09.1]} 32... Nxd5 {[%clk 0:00:15]} 33. exd5 {[%clk
0:00:08.3]} 33... Bxe3+ {[%clk 0:00:13.6]} 34. Qxe3 {[%clk 0:00:08.5]} 34...
Qc1+ {[%clk 0:00:13.7]} 35. Kg2 {[%clk 0:00:01.5]} 35... Qf1# {[%clk 0:00:13.6]}
0-1